bitfinex-derivatives/quotes_SOLF0:USTF0_20250509
["timestamp","ask_amount","ask_price","bid_price","bid_amount"]
[1746764242808,29.94,161.77,161.68,29.84]
[1746764243111,6.1842,161.73,161.69,6.1852]
[1746764243912,6.1842,161.73,161.7,6.1851]
[1746764244109,6.1842,161.73,161.68,29.84]
[1746764244308,29.94,161.77,161.68,29.84]
[1746764244508,29.94,161.77,161.7,6.1849]
[1746764244912,6.1839,161.74,161.7,6.1849]
[1746764245216,6.1839,161.74,161.71,6.1848]
[1746764246011,29.94,161.77,161.68,29.84]
[1746764246411,36.13576408,161.77,161.67,6.1861]
[1746764246614,36.13576408,161.77,161.67,36.0061]
[1746764247210,6.185,161.71,161.67,36.0061]
[1746764248317,6.185,161.71,161.68,6.1859]
[1746764249113,6.1846,161.72,161.68,6.1859]
[1746764250608,29.84,161.73,161.65,1.9637]
[1746764250815,29.84,161.73,161.65,31.7837]
[1746764251120,29.84,161.73,161.65,1.9637]
[1746764251414,6.1854,161.7,161.66,6.1864]
[1746764251819,6.1854,161.7,161.67,6.1863]
[1746764252112,29.84,161.73,161.65,1.9637]
[1746764252414,29.84,161.73,161.66,6.1866]
[1746764252811,29.84,161.73,161.65,1.9637]
[1746764253015,29.84,161.73,161.65,8.1505]
[1746764253217,29.84,161.73,161.65,1.9637]
[1746764253517,6.1851,161.71,161.66,6.1864]
[1746764253815,29.84,161.73,161.66,6.1864]
[1746764254310,6.1853,161.7,161.66,6.1864]
[1746764255212,29.84,161.73,161.63,1.9285]
[1746764255410,29.84,161.73,161.6,36.05576408]
[1746764255612,29.84,161.73,161.61,29.8]
[1746764255813,6.19576408,161.71,161.61,29.8]
[1746764256018,6.1866,161.67,161.63,6.1877]
[1746764256314,29.86,161.68,161.63,6.1877]
[1746764256523,29.86,161.68,161.6,29.86]
[1746764256714,29.86,161.68,161.6,59.66]
[1746764257416,6.187,161.66,161.62,6.1879]
[1746764257615,29.86,161.68,161.6,59.66]
[1746764258313,6.1865,161.67,161.63,6.1876]
[1746764258513,29.86,161.68,161.63,6.1876]
[1746764258709,29.86,161.68,161.6,59.66]
[1746764258912,6.1864,161.67,161.63,6.1878]
[1746764259708,6.1864,161.67,161.6,59.66]
[1746764259709,29.86,161.68,161.6,59.66]
[1746764260116,29.86,161.68,161.6,29.8]
[1746764260518,29.8,161.67,161.59,5.7985]
[1746764261020,29.8,161.67,161.59,3.8689]
[1746764261216,29.8,161.67,161.59,1.9502]
[1746764261416,29.8,161.67,161.57,59.64]
[1746764261616,31.773,161.67,161.58,6.1895]
[1746764262122,6.1883,161.62,161.58,6.1895]
[1746764262721,36.048,161.63,161.59,6.1894]
[1746764263218,29.86,161.63,161.57,29.78]
[1746764263422,29.86,161.63,161.6,6.1889]
[1746764263722,29.86,161.63,161.57,29.78]
[1746764264324,29.86,161.63,161.56,78.30467935]
[1746764264525,29.86,161.63,161.56,108.08467935]
[1746764264822,36.0481,161.63,161.58,6.1897]
[1746764265424,36.0481,161.63,161.59,6.1893]
[1746764265725,6.1884,161.62,161.56,108.08467935]
[1746764265927,29.86,161.63,161.56,108.08467935]
[1746764266323,6.1888,161.61,161.56,108.08467935]
[1746764266724,6.1888,161.61,161.57,6.19]
[1746764267224,6.1891,161.6,161.57,6.19]
[1746764267423,6.1891,161.6,161.56,6.1905]
[1746764267829,6.1891,161.6,161.55,6.0136]
[1746764269030,6.1888,161.61,161.55,6.0136]
[1746764270031,6.1888,161.61,161.57,6.1898]
[1746764270231,6.1891,161.6,161.57,6.1898]
[1746764270633,6.1888,161.61,161.57,6.1898]
[1746764271734,6.1891,161.6,161.57,6.1898]
[1746764273838,6.1888,161.61,161.57,6.1898]
[1746764275340,6.1888,161.61,161.58,6.1898]
[1746764280945,29.86,161.63,161.55,6.0136]
[1746764281648,29.86,161.63,161.6,6.1888]
[1746764282647,36.0479,161.63,161.59,6.1893]
[1746764283147,36.0479,161.63,161.55,6.0136]
[1746764283449,6.1883,161.62,161.55,6.0136]
[1746764283747,29.86,161.63,161.56,6.1904]
[1746764283948,6.1893,161.6,161.56,29.74]
[1746764284949,29.86,161.63,161.56,29.74]
[1746764285350,6.1886,161.62,161.59,6.189]
[1746764286151,6.1886,161.62,161.6,6.189]
[1746764286356,6.1886,161.62,161.56,29.74]
[1746764286653,36.048,161.63,161.59,6.1892]
[1746764287353,6.1883,161.62,161.59,6.1892]
[1746764287653,29.86,161.63,161.58,6.1896]
[1746764287854,29.86,161.63,161.56,29.74]
[1746764288053,6.1883,161.62,161.56,29.74]
[1746764288251,29.86,161.63,161.59,6.1891]
[1746764288949,29.86,161.63,161.56,29.74]
[1746764289354,6.1886,161.61,161.58,6.1895]
[1746764290553,6.1883,161.62,161.59,6.1893]
[1746764290957,29.86,161.63,161.56,29.74]
[1746764291253,6.1887,161.61,161.58,6.1894]
[1746764291549,29.86,161.63,161.56,29.74]
[1746764291753,6.1884,161.62,161.58,6.1897]
[1746764291953,29.86,161.63,161.56,29.74]
[1746764292154,29.86,161.63,161.55,6.0136]
[1746764292353,6.1895,161.59,161.56,6.1902]
[1746764292757,6.1895,161.59,161.55,35.7136]
[1746764292953,6.1892,161.6,161.57,6.1901]
[1746764293255,6.0792,161.6,161.57,6.1901]
[1746764300660,6.1898,161.58,161.55,8.1469]
[1746764301057,59.54,161.63,161.56,6.1905]
[1746764301361,59.54,161.63,161.55,1.9561]
[1746764301665,6.189,161.6,161.57,6.1901]
[1746764302562,6.189,161.6,161.56,6.1904]
[1746764302963,6.189,161.6,161.55,1.9561]
[1746764303164,6.1887,161.61,161.57,6.1898]
[1746764303464,59.54,161.63,161.57,6.1898]
[1746764303765,6.189,161.6,161.57,6.1898]
[1746764306668,6.189,161.6,161.56,6.1904]
[1746764307362,6.189,161.6,161.57,6.1901]
[1746764308866,6.1887,161.61,161.57,6.1901]
[1746764309062,59.54,161.63,161.58,6.1897]
[1746764309273,29.68,161.62,161.55,1.9561]
[1746764309463,59.32,161.64,161.56,4.056]
[1746764309661,29.68,161.64,161.56,4.056]
[1746764310068,534.76,161.69,161.56,10.25176408]
[1746764310268,534.76,161.69,161.59,6.19576408]
[1746764310463,6.1862,161.68,161.64,6.1872]
[1746764310864,534.76,161.69,161.61,2.047]
[1746764311669,6.1866,161.67,161.63,6.1878]
[1746764311870,534.76,161.69,161.61,2.047]
[1746764312370,6.1869,161.66,161.62,6.1881]
[1746764313170,6.1869,161.66,161.61,8.2355]
[1746764313871,534.76,161.69,161.61,8.2355]
[1746764314266,534.76,161.69,161.6,6.1889]
[1746764314464,6.1877,161.64,161.6,6.1889]
[1746764314660,29.66,161.66,161.59,29.62]
[1746764314866,6.1872,161.65,161.59,29.62]
[1746764315063,29.66,161.66,161.59,29.62]
[1746764315668,564.42,161.69,161.6,2.0867]
[1746764315873,6.1869,161.66,161.62,6.1879]
[1746764316071,6.1869,161.66,161.6,2.0867]
[1746764316474,6.1869,161.66,161.62,6.188]
[1746764316972,570.61576408,161.69,161.6,6.1888]
[1746764317771,6.1877,161.64,161.6,6.1888]
[1746764318374,6.1879,161.63,161.6,6.1888]
[1746764318870,570.61576408,161.69,161.61,6.1886]
[1746764319074,570.61576408,161.69,161.59,29.62]
[1746764319574,6.1869,161.66,161.62,6.1882]
[1746764320077,6.1869,161.66,161.59,29.62]
[1746764320375,6.1864,161.67,161.63,6.1878]
[1746764320576,564.42,161.69,161.59,29.62]
[1746764321378,6.1875,161.64,161.61,6.1884]
[1746764321972,6.1872,161.65,161.61,6.1884]
[1746764322577,6.1875,161.64,161.61,6.1884]
[1746764324178,29.66,161.65,161.59,29.58]
[1746764324678,6.1885,161.62,161.58,35.7695]
[1746764325079,6.1886,161.61,161.58,35.7695]
[1746764325280,29.66,161.65,161.58,29.58]
[1746764325576,29.66,161.65,161.57,6.1901]
[1746764325769,6.189,161.6,161.56,8.2195]
[1746764325967,35.476,161.65,161.55,29.58]
[1746764327381,6.1893,161.6,161.56,6.1905]
[1746764328280,6.1888,161.61,161.57,6.19]
[1746764329082,6.189,161.6,161.57,6.19]
[1746764329379,6.189,161.6,161.56,6.1905]
[1746764330882,6.1894,161.59,161.56,6.1905]
[1746764331274,35.476,161.65,161.56,6.1905]
[1746764331475,6.1892,161.6,161.57,6.1901]
[1746764331680,35.476,161.65,161.55,29.58]
[1746764332179,6.1882,161.62,161.58,6.1894]
[1746764332580,35.476,161.65,161.58,6.1894]
[1746764332781,6.1884,161.62,161.59,6.1893]
[1746764334788,6.188,161.63,161.56,6.19576408]
[1746764335478,6.188,161.63,161.6,6.1887]
[1746764337184,6.188,161.63,161.59,6.1892]
[1746764337371,29.66,161.65,161.55,29.58]
[1746764339082,29.56,161.68,161.58,6.19576408]
[1746764339281,29.56,161.68,161.59,33.5514]
[1746764339584,29.56,161.68,161.61,6.1884]
[1746764339980,29.56,161.68,161.59,33.5514]
[1746764340984,6.1874,161.65,161.62,6.1881]
[1746764341485,6.1868,161.66,161.63,6.1878]
[1746764344191,6.1865,161.67,161.63,6.1878]
[1746764344393,29.56,161.68,161.62,6.1881]
[1746764344693,6.187,161.66,161.6,1.9173]
[1746764344891,6.187,161.66,161.63,6.1877]
[1746764345096,29.56,161.68,161.63,6.1877]
[1746764345295,6.1866,161.67,161.63,6.1877]
[1746764345493,29.56,161.68,161.63,6.1877]
[1746764345689,29.56,161.68,161.64,6.1874]
[1746764345894,29.56,161.68,161.63,29.52]
[1746764346195,29.56,161.68,161.65,6.1869]
[1746764346393,29.56,161.71,161.65,6.1869]
[1746764346893,6.1858,161.69,161.65,6.1869]
[1746764347290,29.56,161.71,161.63,29.52]
[1746764347291,6.1866,161.67,161.63,29.52]
[1746764348304,29.56,161.71,161.63,35.7076]
[1746764348502,29.56,161.71,161.63,6.1876]
[1746764349198,6.1866,161.67,161.63,6.1876]
[1746764349507,29.56,161.71,161.62,29.52]
[1746764349697,6.1858,161.69,161.62,29.52]
[1746764350003,6.1858,161.69,161.65,6.1868]
[1746764350199,6.1858,161.69,161.62,29.52]
[1746764350406,6.1853,161.7,161.62,29.52]
[1746764350601,6.1853,161.7,161.62,59.08]
[1746764351203,6.1853,161.7,161.66,6.1865]
[1746764353904,6.1853,161.7,161.67,6.1862]
[1746764354102,35.7449,161.71,161.67,6.1862]
[1746764354901,6.1853,161.7,161.67,6.1862]
[1746764355200,29.56,161.71,161.68,6.1856]
[1746764355404,139.27032255,161.74,161.66,29.48]
[1746764355806,139.27032255,161.74,161.68,6.1856]
[1746764356307,6.1846,161.72,161.68,6.1856]
[1746764356807,6.1846,161.72,161.69,6.1855]
[1746764357709,139.27032255,161.74,161.67,29.48]
[1746764358204,6.1856,161.69,161.62,6.19576408]
[1746764358509,29.48,161.73,161.64,29.48]
[1746764358710,6.1862,161.68,161.64,29.48]
[1746764359009,6.1862,161.68,161.64,35.6672]
[1746764360109,6.1856,161.69,161.65,6.187]
[1746764360314,33.5875,161.73,161.64,29.48]
[1746764360613,6.1856,161.69,161.66,6.1865]
[1746764363014,6.1853,161.7,161.67,6.1863]
[1746764363510,6.1845,161.72,161.64,29.48]
[1746764363710,139.27032255,161.74,161.65,2.0887]
[1746764363916,139.27032255,161.74,161.65,10.29756408]
[1746764364113,139.27032255,161.74,161.66,3.50268557]
[1746764364415,139.27032255,161.74,161.67,1.54678557]
[1746764364713,139.27032255,161.74,161.68,1.54678557]
[1746764364909,139.27032255,161.74,161.7,6.1849]
[1746764365516,145.45422255,161.74,161.7,6.1849]
[1746764365813,139.27032255,161.74,161.68,29.46]
[1746764366013,139.27032255,161.74,161.69,1.54672595]
[1746764366214,139.27032255,161.74,161.68,29.46]
[1746764366417,139.27032255,161.74,161.69,1.54672317]
[1746764366617,139.27032255,161.74,161.68,29.46]
[1746764366917,139.27032255,161.74,161.7,6.1851]
[1746764367413,139.27032255,161.74,161.68,29.46]
[1746764367617,139.27032255,161.74,161.69,1.54671405]
[1746764367916,139.27032255,161.74,161.68,29.46]
[1746764368111,6.1843,161.73,161.7,6.1849]
[1746764368313,139.27032255,161.74,161.68,29.46]
[1746764368715,139.27032255,161.74,161.68,35.6458]
[1746764369417,6.1846,161.72,161.68,35.6458]
[1746764369613,139.27032255,161.74,161.68,35.6458]
[1746764370323,139.27032255,161.74,161.67,35.6262]
[1746764370718,6.1851,161.71,161.67,35.6262]
[1746764371619,6.1851,161.71,161.68,6.1859]
[1746764372420,6.1851,161.71,161.67,35.6262]
[1746764373223,6.1853,161.7,161.67,29.44]
[1746764373422,6.1853,161.7,161.66,6.1866]
[1746764373722,6.1853,161.7,161.67,6.1861]
[1746764373922,6.1847,161.72,161.65,33.5218]
[1746764374221,139.27032255,161.74,161.67,6.186]
[1746764374523,6.1852,161.7,161.67,6.186]
[1746764375222,6.1852,161.7,161.66,6.1866]
[1746764375417,6.19576408,161.73,161.64,29.42]
[1746764375623,35.61576408,161.73,161.63,29.42]
[1746764375823,35.61576408,161.73,161.64,6.1872]
[1746764376423,35.61576408,161.73,161.63,6.1877]
[1746764377423,6.1866,161.67,161.63,6.1877]
[1746764377614,29.46,161.69,161.62,6.1881]
[1746764377820,29.46,161.68,161.62,6.1881]
[1746764378419,29.46,161.68,161.63,6.1878]
[1746764378615,35.6461,161.68,161.6,58.88]
[1746764378819,29.46,161.7,161.6,58.88]
[1746764379227,6.1859,161.69,161.6,58.88]
[1746764379524,29.46,161.7,161.6,58.88]
[1746764379830,6.186,161.68,161.65,6.187]
[1746764380123,29.46,161.7,161.65,6.187]
[1746764380326,35.6453,161.7,161.62,6.19576408]
[1746764380630,35.6453,161.7,161.63,1.9876]
[1746764380820,35.6453,161.7,161.64,29.4]
[1746764381024,29.46,161.7,161.67,6.186]
[1746764381324,58.86,161.73,161.64,29.4]
[1746764381520,109.71032255,161.74,161.65,6.19576408]
[1746764381724,139.17032255,161.74,161.65,10.37716408]
[1746764382323,6.184,161.73,161.65,10.37716408]
[1746764383923,145.35402255,161.74,161.7,6.1849]
[1746764385326,145.35402255,161.74,161.71,6.1848]
[1746764385625,35.6437,161.74,161.71,6.1848]
[1746764385828,6.1832,161.76,161.72,6.1841]
[1746764386231,6.1832,161.76,161.68,29.4]
[1746764386232,6.1832,161.76,161.68,65.05576408]
[1746764386530,35.6426,161.77,161.73,6.1837]
[1746764387326,6.183,161.76,161.72,6.1842]
[1746764387828,6.1833,161.75,161.72,6.1842]
[1746764388628,6.183,161.76,161.73,6.184]
[1746764389928,6.183,161.76,161.72,6.1843]
[1746764390429,6.1834,161.75,161.72,6.1843]
[1746764391231,6.1834,161.75,161.71,6.1847]
[1746764391528,6.1837,161.74,161.69,2.0259]
[1746764391824,29.46,161.77,161.68,65.05576408]
[1746764391825,6.1846,161.72,161.68,6.1857]
[1746764393631,6.1846,161.72,161.69,6.1855]
[1746764393928,29.36,161.76,161.67,29.36]
[1746764394130,33.4287,161.77,161.67,29.36]
[1746764394329,33.4287,161.77,161.71,6.1846]
[1746764394527,6.1835,161.75,161.72,1.54658469]
[1746764394728,6.1835,161.75,161.71,6.1846]
[1746764395025,31.4395,161.77,161.72,1.54658459]
[1746764395224,29.46,161.77,161.73,1.54658459]
[1746764395423,29.46,161.77,161.67,29.36]
[1746764395628,29.46,161.77,161.68,1.54656051]
[1746764395829,6.1835,161.75,161.71,6.1846]
[1746764396031,6.1835,161.75,161.72,1.54656051]
[1746764396227,6.1835,161.75,161.73,1.54656051]
[1746764396430,6.1835,161.75,161.71,6.1846]
[1746764396631,6.1835,161.75,161.72,1.54654586]
[1746764396831,6.1835,161.75,161.73,1.54654586]
[1746764397033,6.1835,161.75,161.71,6.1846]
[1746764397233,6.183,161.76,161.72,7.73083776]
[1746764397425,6.183,161.76,161.73,1.54653776]
[1746764397630,6.183,161.76,161.72,6.1843]
[1746764397825,6.183,161.76,161.73,1.54653772]
[1746764398030,6.183,161.76,161.72,6.1843]
[1746764398230,6.1833,161.75,161.73,1.54653929]
[1746764398530,6.1833,161.75,161.72,6.1843]
[1746764398724,6.1833,161.75,161.73,1.54653973]
[1746764398930,6.1833,161.75,161.71,6.1846]
[1746764399133,6.1833,161.75,161.72,1.54653966]
[1746764399335,6.1833,161.75,161.73,1.54653966]
[1746764399535,6.1833,161.75,161.71,6.1846]
[1746764399726,6.1833,161.75,161.72,1.54654534]
[1746764400030,6.1833,161.75,161.71,6.1846]
[1746764400237,6.1833,161.75,161.72,1.54654296]
[1746764400437,6.1833,161.75,161.73,1.54654296]
[1746764400638,6.1833,161.75,161.71,6.1846]
[1746764400838,6.1833,161.75,161.72,1.54653854]
[1746764401137,6.1833,161.75,161.73,1.54653854]
[1746764401340,6.1833,161.75,161.71,6.1846]
[1746764401532,6.1833,161.75,161.72,1.54654712]
[1746764401731,6.1833,161.75,161.73,1.54654712]
[1746764401936,6.1833,161.75,161.71,6.1846]
[1746764402131,6.1833,161.75,161.72,1.54653708]
[1746764402336,6.1836,161.74,161.73,1.54653708]
[1746764402533,6.1836,161.74,161.67,29.36]
[1746764402843,6.1836,161.74,161.7,6.1851]
[1746764403043,6.1836,161.74,161.71,1.54656859]
[1746764403243,6.184,161.73,161.72,1.54656859]
[1746764403744,6.184,161.73,161.67,29.34]
[1746764403949,6.184,161.73,161.68,1.54667146]
[1746764404145,6.184,161.73,161.69,7.73197146]
[1746764404345,6.184,161.73,161.7,1.54667146]
[1746764404552,6.1838,161.74,161.71,1.54667146]
[1746764404753,6.1838,161.74,161.7,6.1849]
[1746764404946,6.1838,161.74,161.71,1.54670091]
[1746764405251,6.1841,161.73,161.67,29.34]
[1746764405450,6.1841,161.73,161.68,1.54669831]
[1746764405646,6.1844,161.72,161.69,1.54669831]
[1746764405847,6.1844,161.72,161.7,1.54669831]
[1746764406047,6.1844,161.72,161.71,1.54669831]
[1746764406651,6.1858,161.69,161.65,29.34]
[1746764406947,29.36,161.73,161.63,1.9676]
[1746764407152,8.11706408,161.72,161.62,29.36]
[1746764407451,29.34,161.71,161.62,29.36]
[1746764407651,29.34,161.71,161.61,29.34]
[1746764407854,6.1859,161.68,161.61,29.34]
[1746764408151,29.36,161.69,161.61,29.34]
[1746764408453,6.1864,161.67,161.63,6.1876]
[1746764408651,1.9213,161.72,161.61,29.34]
[1746764408853,29.36,161.71,161.61,29.34]
[1746764409147,29.36,161.71,161.63,6.19576408]
[1746764409351,29.36,161.71,161.64,2.0677]
[1746764409553,35.545,161.71,161.67,6.186]
[1746764409852,29.36,161.71,161.65,29.34]
[1746764410253,6.1852,161.7,161.65,29.34]
[1746764410450,29.36,161.71,161.65,29.34]
[1746764410754,35.5451,161.71,161.67,6.1861]
[1746764410953,29.36,161.71,161.67,6.1861]
[1746764411256,29.36,161.71,161.65,29.34]
[1746764411454,6.1854,161.7,161.66,6.1866]
[1746764412151,29.36,161.71,161.66,6.1866]
[1746764412357,6.1856,161.69,161.66,6.1866]
[1746764412556,29.36,161.71,161.66,6.1866]
[1746764413252,6.1854,161.7,161.66,6.1866]
[1746764415755,6.1859,161.68,161.65,29.34]
[1746764416059,6.1859,161.68,161.62,29.32]
[1746764416460,6.1857,161.69,161.62,29.32]
[1746764416762,29.36,161.71,161.62,29.32]
[1746764416959,6.1862,161.68,161.62,29.32]
[1746764417259,29.36,161.71,161.62,29.32]
[1746764417455,6.1863,161.67,161.64,6.1874]
[1746764417859,29.36,161.71,161.62,29.32]
[1746764418159,29.36,161.71,161.6,60.7013]
[1746764418352,6.19576408,161.69,161.59,2.0626]
[1746764418556,6.1881,161.63,161.59,6.1891]
[1746764418758,29.36,161.65,161.59,6.1891]
[1746764419063,6.1883,161.62,161.58,6.1895]
[1746764419254,29.36,161.65,161.56,29.32]
[1746764419962,1.9166,161.68,161.57,6.19576408]
[1746764420259,29.36,161.67,161.57,6.19576408]
[1746764420660,6.1873,161.65,161.61,6.1886]
[1746764420959,6.1873,161.65,161.57,6.19576408]
[1746764420960,29.36,161.67,161.57,6.19576408]
[1746764421356,6.1875,161.64,161.6,6.1887]
[1746764421659,29.36,161.67,161.57,6.19576408]
[1746764421961,6.1882,161.62,161.58,6.1897]
[1746764423364,6.1886,161.61,161.58,6.1897]
[1746764423559,29.3,161.63,161.58,6.1897]
[1746764423963,6.1884,161.62,161.59,6.1892]
[1746764424164,29.3,161.63,161.59,6.1892]
[1746764424564,35.4881,161.63,161.59,6.1892]
[1746764424767,29.3,161.63,161.57,35.51576408]
[1746764424967,29.3,161.63,161.57,29.32]
[1746764425165,6.1889,161.61,161.57,29.32]
[1746764425365,6.1889,161.61,161.58,6.1896]
[1746764425566,29.3,161.63,161.57,29.32]
[1746764426065,6.1885,161.62,161.59,6.1892]
[1746764426466,6.1886,161.61,161.58,6.1897]
[1746764428670,6.1883,161.62,161.59,6.1893]
[1746764429170,1.9166,161.68,161.57,29.32]
[1746764429375,6.1877,161.64,161.6,6.1886]
[1746764429770,6.1877,161.64,161.57,35.51576408]
[1746764430271,6.1872,161.65,161.57,35.51576408]
[1746764430572,6.1872,161.65,161.61,6.1883]
[1746764430872,6.1881,161.63,161.55,1.9372]
[1746764431068,6.1881,161.63,161.58,29.32]
[1746764431375,6.1884,161.62,161.58,29.32]
[1746764431567,6.1884,161.62,161.56,29.32]
[1746764431867,6.1884,161.62,161.56,58.62]
[1746764432374,6.1886,161.61,161.58,6.1897]
[1746764433173,29.32,161.63,161.58,6.1897]
[1746764433476,29.32,161.63,161.57,6.19]
[1746764434971,6.1889,161.61,161.57,6.19]
[1746764435880,6.1883,161.62,161.58,6.1897]
[1746764436072,29.32,161.63,161.56,29.32]
[1746764436377,29.32,161.63,161.56,29.3]
[1746764436581,6.1893,161.6,161.56,35.4902]
[1746764436879,29.32,161.63,161.56,35.4902]
[1746764437077,6.1894,161.59,161.56,35.4902]
[1746764438982,6.1891,161.6,161.56,35.4902]
[1746764439277,29.32,161.63,161.56,35.4902]
[1746764439578,6.1892,161.6,161.56,35.4902]
[1746764440473,6.1894,161.59,161.56,35.4902]
[1746764441374,6.1894,161.59,161.56,29.3]
[1746764441578,35.51576408,161.63,161.51,6.19576408]
[1746764441775,35.51576408,161.63,161.5,29.32]
[1746764441776,2.0489,161.62,161.5,29.32]
[1746764441977,29.3,161.61,161.52,29.3]
[1746764442377,29.3,161.61,161.52,35.4918]
[1746764442781,29.3,161.61,161.52,29.3]
[1746764442981,6.1904,161.57,161.53,6.1915]
[1746764443375,29.32,161.58,161.53,6.1915]
[1746764443880,29.32,161.58,161.52,29.3]
[1746764444381,35.5098,161.58,161.54,6.191]
[1746764444782,35.5098,161.58,161.55,6.1908]
[1746764445582,35.5098,161.58,161.54,6.1912]
[1746764445881,35.5098,161.58,161.52,29.3]
[1746764446282,29.32,161.58,161.55,6.1907]
[1746764446583,29.32,161.61,161.52,29.3]
[1746764446782,29.32,161.61,161.57,6.1899]
[1746764447081,6.1892,161.6,161.57,6.1899]
[1746764447983,6.1894,161.59,161.56,6.1904]
[1746764449485,6.1891,161.6,161.57,6.1901]
[1746764449686,29.32,161.64,161.56,29.3]
[1746764449883,29.32,161.64,161.57,6.19576408]
[1746764450081,35.5077,161.64,161.57,6.19576408]
[1746764450381,29.3,161.69,161.57,6.19576408]
[1746764450586,6.187,161.66,161.62,6.188]
[1746764451085,6.187,161.66,161.6,29.3]
[1746764451286,6.187,161.66,161.62,6.1881]
[1746764451490,6.1872,161.65,161.6,29.3]
[1746764451884,29.32,161.67,161.6,29.3]
[1746764453090,29.32,161.67,161.57,29.28]
[1746764453687,29.32,161.67,161.57,35.4701]
[1746764454082,29.32,161.67,161.57,29.28]
[1746764454287,6.1892,161.6,161.57,29.28]
[1746764455789,6.1894,161.59,161.57,29.28]
[1746764456691,6.1898,161.58,161.57,29.28]
[1746764456987,6.1898,161.58,161.55,8.3066]
[1746764457181,29.28,161.61,161.53,6.1914]
[1746764458087,6.1906,161.56,161.53,6.1914]
[1746764458390,29.28,161.58,161.53,6.1914]
[1746764459185,6.1902,161.57,161.54,6.1912]
[1746764459489,29.28,161.58,161.51,35.47576408]
[1746764460290,6.1908,161.56,161.53,6.1915]
[1746764461291,6.191,161.55,161.52,6.192]
[1746764465391,6.1907,161.56,161.53,6.1916]
[1746764465586,6.1907,161.56,161.51,6.19576408]
[1746764465786,29.28,161.58,161.51,6.19576408]
[1746764466291,6.1904,161.57,161.53,6.1916]
[1746764467288,6.1904,161.57,161.54,6.1912]
[1746764467689,6.0736,161.64,161.54,6.1912]
[1746764467690,6.0736,161.64,161.58,6.1897]
[1746764467889,29.28,161.61,161.57,6.19576408]
[1746764468089,29.28,161.63,161.57,6.19576408]
[1746764468289,6.1886,161.62,161.59,6.1892]
[1746764468689,6.1889,161.61,161.57,6.19]
[1746764468883,29.28,161.63,161.54,29.26]
[1746764469083,29.28,161.63,161.52,6.19576408]
[1746764469288,29.28,161.63,161.53,29.26]
[1746764469491,6.1888,161.61,161.57,6.1901]
[1746764471394,6.1891,161.6,161.56,6.1904]
[1746764471594,29.28,161.63,161.53,29.26]
[1746764472394,6.1894,161.6,161.53,29.26]
[1746764473696,6.1894,161.6,161.55,6.1906]
[1746764474896,6.1894,161.59,161.55,6.1906]
[1746764475091,29.28,161.63,161.56,6.1905]
[1746764475395,6.1892,161.6,161.56,6.1905]
[1746764476996,6.1894,161.59,161.55,6.1907]
[1746764477296,6.1894,161.59,161.53,29.24]
[1746764477297,29.28,161.59,161.53,29.24]
[1746764477497,6.1904,161.57,161.53,6.1915]
[1746764477697,29.28,161.59,161.49,64.71576408]
[1746764478598,35.4696,161.59,161.55,6.1908]